{"text_format":"1","workbook":"xlsx","n_sheets":2,"sheets":["Cotação","NÃO EXLUIR"],"not_rendered":{"charts":0,"images":1,"macros":1,"external_links":0,"defined_names":2,"comments":0,"pivot_tables":0},"unopened":[],"bounds":{"document_bytes":16777216,"sheet_cells":100000,"rows_first":2000,"rows_last":500,"rows_between":2000,"halvings":0,"cell_chars":16384,"cell_head_chars":4096},"cells_cut":0,"cells_raw":0,"read":"whole","date_system":"1900"}

{"sheet":"Cotação","index":0,"n_rows":94,"n_cols":15,"rows_kept":94,"cut":false,"hidden":false,"merged":[[2,0,2,1],[3,0,3,1],[2,2,2,6],[2,7,2,10],[3,2,3,6],[3,7,3,10],[44,0,44,10],[6,9,6,10],[29,0,29,10],[17,3,17,7],[12,3,12,7],[13,3,13,7],[16,3,16,7],[14,3,14,7],[15,3,15,7],[25,7,25,8],[26,3,26,5],[26,0,26,2],[6,3,7,7],[8,8,10,8],[4,0,4,10],[31,0,31,10],[6,8,7,8],[6,0,7,0],[6,1,7,1],[30,0,30,10],[21,3,21,7],[22,3,22,7],[8,3,8,7],[10,3,10,7],[18,3,18,7],[19,3,19,7],[20,3,20,7],[9,3,9,7],[11,3,11,7],[6,2,7,2]]}
[]
[null,null,null,null,null,null,null,null,"Nº",{"$f":"A4","v":"080/2025"}]
["Cotação nº: ",null,"Data  de início de recebimento das propostas: ",null,null,null,null,"Data limite para apresentação da Cotação de Preços:"]
["080/2025",null,"2025-06-25",null,null,null,null,"2025-06-30"]
["A presente Pesquisa de Preços objetiva também identificar Microempresas (ME) e Empresas de Pequeno Porte (EPP) no Estado de Santa Catarina ao que trata a LC 123/06 (Art. 47 e Inc. I e III do Art. 48), assim, solicitamos aos fornecedores acima enquadrados o encaminhamento de comprovante ao presente regime diferenciado de ME/EPP, o que pode ser realizado preenchendo a declaração disponível em anexo (Declaração de ME-EPP) e/ou preenchimento completo da Razão Social com a terminologia usual para ME/EPP ao final destacada."]
["Prezados Senhores, solicitamos a gentileza de nos fornecer orçamento para os seguintes itens:",null,null,null,null,null,null,null,null,"Serviços:"]
["Item","Qtdade","Unid.","Descrição do Objeto                                                                            ",null,null,null,null,"Especificações","Preço (R$)"]
[null,null,null,null,null,null,null,null,null,"Unitário","Total"]
[1,1,"Serv.","Forcepoint DLP Suite (IP Protection) User & Data Security 1Y - 200 Users",null,null,null,null,"Conforme Memorial Descritivo"]
[2,33,"Hora","Banco de horas (33 horas) a serem utilizadas conforme demanda da SCGÁS durante a vigência do contrato para suporte técnico, atualização tecnológica e configuração do Solução de DLP."]
[]
[4]
[5]
[6]
[7]
[8]
[9]
[10]
[11]
[12]
[13]
[14]
[15]
[null,null,null,null,null,"Condições Comerciais"]
["Tipo de julgamento:",null,"Menor preço Global",null,null,null,null,"Preço: fixo e irreajustável"]
[{"$f":"IF(J6=\"Materiais:\",\"Forma de entrega:\",\"Forma de execução:\")","v":"Forma de execução:"},null,"Parcelada",null,null,null,null,{"$f":"IF(J6=\"Materiais:\",\"Frete: CIF\",\"Forma de pagamento:\")","v":"Forma de pagamento:"},null,"Ao final de cada etapa"]
["Prazo de Vigência Contratual:",null,null,"12 meses"]
[{"$f":"IF(J6=\"Materiais:\",\"Horário de entrega: de Segunda a Sexta-Feira das 08:00 às 11:30 e das 13:30 às 17:00 horas.\",\"Horário de execução: de Segunda a Sexta-Feira das 08:00 às 11:30 e das 13:30 às 17:00 horas.\")","v":"Horário de execução: de Segunda a Sexta-Feira das 08:00 às 11:30 e das 13:30 às 17:00 horas."}]
["Endereço de Entrega e/ou Execução:",null,null,null,null,null,null,"Validade da proposta: 60 dias"]
["Conforme Memorial Descritivo",null,null,null,null,null,null,null,null,null,null,null,null,null," "]
["* Nos preços apresentados devem estar INCLUSOS todos os tributos, impostos, fretes (CIF).                 \n* O proponente interessado, ao encaminhar a proposta de preços, está ciente que  o seu orçamento atende integralmente as exigências constantes da especificação do objeto, bem como tomou ciência dos demais Anexos deste processo (quando houver)."]
["Dados do Fornecedor - Preeencher preferencialmente a Razão Social e o CNPJ"]
["Razão Social:"]
["CNPJ:",null,null,null,null,null,"I. Estadual:"]
["Endereço:",null,null,null,null,null,"Bairro:"]
["Cidade:",null,null,null,null,null,"Estado:",null,"CEP:"]
["E-mail da Empresa:",null,null,null,null,null,"Tel.:",null,"FAX:"]
["Banco:",null,null,"Nº Banco:",null,null,"Agência:",null,"C/C:"]
["Nome Adm. Responsável:"]
["Nome Contato:",null,null,null,null,"E-mail Contato:"]
["Analista do Processo - Encaminhar a Cotação com os Preços para o e-mail abaixo:"]
["Valdete Aparecida Andrett"]
["valdete.andrett@scgas.com.br"]
["Telefone: (48) 3229-1200"]
["Companhia de Gás de Santa Catarina - SCGÁS \nRua Antônio Luz, 255, Centro Empresarial Hoepcke, Centro,  Florianópolis – SC, CEP: 88010-410. \nCNPJ 86.864.543/0001-72  \nInscrição Estadual nº 253.028.655 \nSite: www.scgas.com.br"]
[]
[]
[]
[]
[]
[]
[]
[]
[]
[]
[]
[]
[]
[]
[]
[]
[]
[]
[]
[]
[]
[]
[]
[]
[]
[]
[]
[]
[]
[]
[]
[]
[]
[]
[]
[]
[]
[null,null,null,null,null,null,null,null,null,null,null,"\\00 -COTAÇÃO"]
[null,null,null,null,null,null,null,null,null,null,null,"\\01 - E-MAIL´S"]
[]
[{"$f":"CONCATENATE(C86,K86)","v":{"$error":"#REF!"}},{"$f":"A87&\"\\\"","v":{"$error":"#REF!"}},{"$f":"\"V:\\Gerhs\\SUPRIMENTOS\\LICITAÇÕES E CONTRATOS\\\"&#REF!&\"\\COTAÇÕES DE COMPRAS\"&\"\\\"","v":{"$error":"#REF!"}},null,null,null,null,null,null,null,{"$f":"#REF!&\" - \"&LEFT($D$9,30)&\"-\"","v":{"$error":"#REF!"}}]
[{"$f":"CONCATENATE($C$86,$K$86,L83)","v":{"$error":"#REF!"}},{"$f":"#REF!&\"_\"&#REF!&\".xlsm\"","v":{"$error":"#REF!"}}]
[{"$f":"CONCATENATE($C$86,$K$86,L84)","v":{"$error":"#REF!"}},{"$f":"#REF!&\"_Cotação_\"&#REF!&\".pdf\"","v":{"$error":"#REF!"}}]
[null,{"$f":"#REF!&\"_Comparativo_\"&#REF!&\".pdf\"","v":{"$error":"#REF!"}}]
[null,{"$f":"#REF!&\"_Resultado_\"&#REF!&\".pdf\"","v":{"$error":"#REF!"}}]
[null,{"$f":"\"V:\\Gerhs\\SUPRIMENTOS\\LICITAÇÕES E CONTRATOS\\\"&#REF!&\"\\COTAÇÕES DE COMPRAS\\000 - COTAÇÕES ME-EPP\\\" & \"Formulário de Cotação - ME-EPP2.xlsm\"","v":{"$error":"#REF!"}}]
[]
[null,{"$f":"\"Prezados Srs.,  \n \n\nSegue em anexo solicitação de cotação nº \"&A4&\".\"&\" \nAguardaremos retorno até \"&TEXT(H4,\"dd/mm/aaaa\")&\".\"&\"\n  \nFavor nos enviar a proposta em papel timbrado de sua empresa, NÃO UTILIZAR A LOGOMARCA DA SCGÁS.\"&\" \n \n Atenciosamente, \n\n \"","v":"Prezados Srs.,  \n \n\nSegue em anexo solicitação de cotação nº 080/2025. \nAguardaremos retorno até 30/06/2025.\n  \nFavor nos enviar a proposta em papel timbrado de sua empresa, NÃO UTILIZAR A LOGOMARCA DA SCGÁS. \n \n Atenciosamente, \n\n "}]
[null,{"$f":"\"Prezados Srs.,  \n \n\nSegue em resultado da solicitação de cotação nº \"&A4&\",  encerrada em \"&TEXT(H4,\"dd/mm/aaaa\")&\".\n\n Atenciosamente, \n\n \"\n&A42&\" \n\"\n&\"Fone: 48 3229-1200\"","v":"Prezados Srs.,  \n \n\nSegue em resultado da solicitação de cotação nº 080/2025,  encerrada em 30/06/2025.\n\n Atenciosamente, \n\n Valdete Aparecida Andrett \nFone: 48 3229-1200"}]

{"sheet":"NÃO EXLUIR","index":1,"n_rows":110,"n_cols":14,"rows_kept":110,"cut":false,"hidden":true,"merged":[]}
[null,"NÃO EXCLUA ESTA PLANILHA, ELA SERVE DE BASE DE DADOS PARA AS LISTAS SUSPENSAS"]
[]
[]
[]
[]
[]
[]
[]
[]
[]
[]
[]
[]
[]
[]
[]
[]
[]
[]
[]
[]
[]
[]
[]
[]
[]
[]
[]
[]
[]
[]
[]
[]
[]
[]
[]
[]
[]
[]
[]
[]
[]
[]
[]
[]
[]
[]
[]
[]
[]
[]
[]
[]
[]
[]
[]
[]
[]
[]
[]
[]
[]
[]
[]
[]
[]
[]
[]
[]
[]
[]
[]
[]
[]
[]
[]
[]
[]
[]
[]
[]
[]
["SELECIONE",null,null,"SELECIONE",null,"SELECIONE",null,"SELECIONE",null,null,"SELECIONE",null,"SELECIONE"]
["Menor preço por item",null,null,"Única",null,"Sede da SCGÁS: Rua Antonio Luz, 255 - Centro - Florianópolis/SC - CEP 88.010-410. Telefone: (48) 3229-1200",null,"Adézio Machado",null,null,"AC",null,"Após análise da(s) proposta(s) comercial(is) apresentada(s) pela(s) empresa(s)e levando em consideração as especificações técnicas, objeto do orçamento, como também, as comprovações apresentadas para atender os critérios de qualificação técnica e regularidade fiscal, junto ao INSS e FGTS, informamos que a empresa que apresentou o MENOR PREÇO está capacitada a fornecer/executar o objeto da contratação. "]
["Menor preço por lote",null,null,"Parcelada",null,"Rodovia SC 407, Km 3,5 - Centro Industrial e Comercial de Biguaçu CICOBI - Rua Edgard Hoffmann, nº 309 - Bairro Beira Rio - Biguaçu/SC - CEP: 88164-275\nTelefone (48) 3229-1180/3229-1181/3229-1182",null,"Karen Kunzler Graff",null,null,"AL",null,"Após análise das propostas comerciais apresentadas pelas empresas e levando em consideração as especificações técnicas, objeto do orçamento, como também, as comprovações apresentadas para atender os critérios de qualificação técnica e regularidade fiscal, junto ao INSS e FGTS, informamos que a empresa que apresentou o MENOR PREÇO NÃO está capacitada a fornecer/executar o objeto da contratação. Desta forma procedeu-se análise da documentação da proponente com a segunda melhor proposta, que contatamos estar capacitada a fornecer/executar o objeto da contratação. "]
["Menor preço Global",null,null,null,null,"Rua São Paulo, nº 2415 - Bairro Floresta -CEP.:89.210-000 - Joinville, SC - Fone: (47) 3454-4333",null,"Giovani Della Rocca",null,null,"AM",null,"Após análise das propostas comerciais apresentadas pelas empresas e levando em consideração as especificações técnicas, objeto do orçamento, como também, as comprovações apresentadas para atender os critérios de qualificação técnica e regularidade fiscal, junto ao INSS e FGTS, informamos que as empresas quem apresentaram o primeiro e segundo MENOR PREÇO NÃO estão capacitadas a fornecer/executar o objeto da contratação. Procedendo a análise da documentação da proponente com a terceira melhor proposta observou-se estar capacitada a fornecer/executar o objeto da contratação. "]
[null,null,null,{"$f":"IF(Cotação!J6=\"Materiais:\",\"\",\"SELECIONE\")","v":"SELECIONE"},null,"Rua 2 de Setembro, 1741, Salas 15, 16 e 17 - Bairro Itoupava Norte - CEP: 89.052-001 - Blumenau/SC - Fone: (47) 3340-8010",null,"Roberta Fiamoncini da Silva",null,null,"AP"]
[null,null,null,{"$f":"IF(Cotação!J6=\"Materiais:\",\"\",\"Único ao final\")","v":"Único ao final"},null,"Edifício João F. Benedet, Rua Henrique Lage, 211, 4° andar, salas 401 e 402, Centro – Criciúma/SC - CEP.: 88801-010. Telefone: (48) 3437-9462",null,"Guilherme dos Santos Timponi",null,null,"BA"]
["SELECIONE",null,null,{"$f":"IF(Cotação!J6=\"Materiais:\",\"\",\"Ao final de cada etapa\")","v":"Ao final de cada etapa"},null,"Rua João Ledra, nº 247 – Sala 02 - Bairro Taboão - CEP 89160-470 - Rio do Sul/SC. Telefones (47) 3340-8010",null,"Tirza Torres Pereira",null,null,"CE",null,"SELECIONE"]
["Materiais:",null,null,{"$f":"IF(Cotação!J6=\"Materiais:\",\"\",\"De acordo com o cronograma\")","v":"De acordo com o cronograma"},null,null,null,"Luciana Cristina da Silva",null,null,"DF",null,{"$f":"IF(Cotação!B9=\"\",\"\",\" A empresa \"&IF(SMALL(#REF!,1)=#REF!,#REF!,IF(SMALL(#REF!,1)=#REF!,#REF!,IF(SMALL(#REF!,1)=#REF!,#REF!,IF(SMALL(#REF!,1)=#REF!,#REF!,\"\"))))&\" foi a única a apresentar proposta comercial para o referido objeto, mesmo após reabertura de cotação, no valor total de R$ \"&TEXT(SMALL(#REF!,1),\"0.0,00\")&\", o qual está compatível com o valor estimado pela área requerente.\")","v":{"$error":"#REF!"}}]
["Serviços:",null,null,null,null,null,null,null,null,null,"ES",null,{"$f":"IF(Cotação!B9=\"\",\"\",\" A empresa \"&IF(SMALL(#REF!,1)=#REF!,#REF!,IF(SMALL(#REF!,1)=#REF!,#REF!,IF(SMALL(#REF!,1)=#REF!,#REF!,IF(SMALL(#REF!,1)=#REF!,#REF!,\"\"))))&\" apresentou a melhor proposta comercial para o referido objeto, no valor total de R$ \"&TEXT(SMALL(#REF!,1),\"0.0,00\")&\", o qual está compatível com o valor estimado pela área requerente. A empresa \"&IF(SMALL(#REF!,2)=#REF!,#REF!,IF(SMALL(#REF!,2)=#REF!,#REF!,IF(SMALL(#REF!,2)=#REF!,#REF!,IF(SMALL(#REF!,2)=#REF!,#REF!,\"\"))))&\" apresentou a segunda  melhor proposta, no valor total de R$ \"&TEXT((SMALL(#REF!,2)),\"0.0,00\")&\".\")","v":{"$error":"#REF!"}}]
[null,null,null,null,null,null,null,null,null,null,"GO",null,{"$f":"IF(Cotação!B9=\"\",\"\",\" A empresa \"&IF(SMALL(#REF!,1)=#REF!,#REF!,IF(SMALL(#REF!,1)=#REF!,#REF!,IF(SMALL(#REF!,1)=#REF!,#REF!,IF(SMALL(#REF!,1)=#REF!,#REF!,\"\"))))&\" apresentou a melhor proposta comercial para o referido objeto, no valor total de R$ \"&TEXT(SMALL(#REF!,1),\"0.0,00\")&\", o qual está compatível com o valor estimado pela área requerente. As empresas \"&IF(SMALL(#REF!,2)=#REF!,#REF!,IF(SMALL(#REF!,2)=#REF!,#REF!,IF(SMALL(#REF!,2)=#REF!,#REF!,IF(SMALL(#REF!,2)=#REF!,#REF!,\"\"))))&\" e \"&IF(SMALL(#REF!,3)=#REF!,#REF!,IF(SMALL(#REF!,3)=#REF!,#REF!,IF(SMALL(#REF!,3)=#REF!,#REF!,IF(SMALL(#REF!,3)=#REF!,#REF!,\"\"))))&\" apresentaram a segunda e terceira melhor proposta, respectivamente, no valor total de R$ \"&TEXT((SMALL(#REF!,2)),\"0.0,00\")&\" e R$ \"&TEXT((SMALL(#REF!,3)),\"0.0,00\")&\".\")","v":{"$error":"#REF!"}}]
[null,null,null,null,null,null,null,null,null,null,"MA",null,{"$f":"IF(Cotação!B9=\"\",\"\",\" Tal contratação é uma inexigibilidade de licitação por tratar-se de fornecedor exclusivo/inviabilidade de competição, conforme comprovado nos autos do processo, sendo assim, a empresa \"&IF(SMALL(#REF!,1)=#REF!,#REF!,IF(SMALL(#REF!,1)=#REF!,#REF!,IF(SMALL(#REF!,1)=#REF!,#REF!,IF(SMALL(#REF!,1)=#REF!,#REF!,\"\"))))&\"  foi a única a apresentar proposta comercial para o referido objeto, no valor total de R$ \"&TEXT(SMALL(#REF!,1),\"0.0,00\")&\", o qual está compatível com o valor estimado pela área requerente.\")","v":{"$error":"#REF!"}}]
[null,null,null,null,null,null,null,null,null,null,"MG"]
[null,null,null,null,null,null,null,null,null,null,"MS"]
[null,null,null,null,null,null,null,null,null,null,"MT",null,1,{"$f":"IF(Cotação!B9=\"\",\"\",AND(SMALL(#REF!,1)=#REF!,#REF!='NÃO EXLUIR'!M84))","v":{"$error":"#REF!"}}]
[null,null,null,null,null,null,null,null,null,null,"PA",null,2,{"$f":"IF(Cotação!B9=\"\",\"\",AND(SMALL(#REF!,1)=#REF!,#REF!='NÃO EXLUIR'!M84))","v":{"$error":"#REF!"}}]
[null,null,null,null,null,null,null,null,null,null,"PB",null,3,{"$f":"IF(Cotação!B9=\"\",\"\",AND(SMALL(#REF!,1)=#REF!,#REF!='NÃO EXLUIR'!M84))","v":{"$error":"#REF!"}}]
[null,null,null,null,null,null,null,null,null,null,"PE",null,4,{"$f":"IF(Cotação!B9=\"\",\"\",AND(SMALL(#REF!,1)=#REF!,#REF!='NÃO EXLUIR'!M84))","v":{"$error":"#REF!"}}]
[null,null,null,null,null,null,null,null,null,null,"PI"]
[null,null,null,null,null,null,null,null,null,null,"PR",null,1,{"$f":"IF(Cotação!B9=\"\",\"\",AND(SMALL(#REF!,2)=#REF!,#REF!='NÃO EXLUIR'!M85))","v":{"$error":"#REF!"}}]
[null,null,null,null,null,null,null,null,null,null,"RJ",null,2,{"$f":"IF(Cotação!B9=\"\",\"\",AND(SMALL(#REF!,2)=#REF!,#REF!='NÃO EXLUIR'!M85))","v":{"$error":"#REF!"}}]
[null,null,null,null,null,null,null,null,null,null,"RN",null,3,{"$f":"IF(Cotação!B9=\"\",\"\",AND(SMALL(#REF!,2)=#REF!,#REF!='NÃO EXLUIR'!M85))","v":{"$error":"#REF!"}}]
[null,null,null,null,null,null,null,null,null,null,"RO",null,4,{"$f":"IF(Cotação!B9=\"\",\"\",AND(SMALL(#REF!,2)=#REF!,#REF!='NÃO EXLUIR'!M85))","v":{"$error":"#REF!"}}]
[null,null,null,null,null,null,null,null,null,null,"RR"]
[null,null,null,null,null,null,null,null,null,null,"RS",null,1,{"$f":"IF(Cotação!B9=\"\",\"\",AND(SMALL(#REF!,3)=#REF!,#REF!='NÃO EXLUIR'!M86))","v":{"$error":"#REF!"}}]
[null,null,null,null,null,null,null,null,null,null,"SC",null,2,{"$f":"IF(Cotação!B9=\"\",\"\",AND(SMALL(#REF!,3)=#REF!,#REF!='NÃO EXLUIR'!M86))","v":{"$error":"#REF!"}}]
[null,null,null,null,null,null,null,null,null,null,"SE",null,3,{"$f":"IF(Cotação!B9=\"\",\"\",AND(SMALL(#REF!,3)=#REF!,#REF!='NÃO EXLUIR'!M86))","v":{"$error":"#REF!"}}]
[null,null,null,null,null,null,null,null,null,null,"SP",null,4,{"$f":"IF(Cotação!B9=\"\",\"\",AND(SMALL(#REF!,3)=#REF!,#REF!='NÃO EXLUIR'!M86))","v":{"$error":"#REF!"}}]
[null,null,null,null,null,null,null,null,null,null,"TO"]